bitfinex-derivatives/quotes_BTCF0:USTF0_20250902
["timestamp","ask_amount","ask_price","bid_price","bid_amount"]
[1756802210876,0.07232055,110320.0,110290.0,0.03565]
[1756802211077,0.33,110320.0,110310.0,0.33970311]
[1756802211378,0.33,110320.0,110310.0,0.37535311]
[1756802212277,0.331,110320.0,110310.0,0.08182]
[1756802212479,0.335,110320.0,110310.0,0.37535311]
[1756802212871,0.334,110320.0,110310.0,0.37535311]
[1756802213070,0.337,110320.0,110310.0,0.37535311]
[1756802215081,0.40805162,110320.0,110310.0,0.37535311]
[1756802217284,0.40805162,110320.0,110310.0,0.08182]
[1756802217483,0.40805162,110320.0,110310.0,0.37535311]
[1756802219285,0.70158473,110320.0,110310.0,0.37535311]
[1756802219783,0.70158473,110320.0,110310.0,0.08182]
[1756802219984,0.70158473,110320.0,110310.0,0.37535311]
[1756802220484,0.70158473,110320.0,110290.0,0.79181]
[1756802220685,0.70158473,110320.0,110310.0,0.33970311]
[1756802220885,0.70158473,110320.0,110310.0,0.37535311]
[1756802221281,0.40805162,110320.0,110310.0,0.37535311]
[1756802221489,0.69858473,110320.0,110310.0,0.37535311]
[1756802221684,0.40605162,110320.0,110310.0,0.37535311]
[1756802221884,0.335,110320.0,110310.0,1.74856622]
[1756802222085,0.335,110320.0,110310.0,2.04209933]
[1756802222281,0.121,110320.0,110310.0,1.74856622]
[1756802222581,0.124,110320.0,110310.0,1.74856622]
[1756802222788,0.004,110320.0,110310.0,1.83920902]
[1756802223086,0.004,110320.0,110310.0,2.2047864]
[1756802223287,0.003,110320.0,110310.0,2.2047864]
[1756802223490,0.007,110320.0,110310.0,1.91125329]
[1756802223787,0.007,110320.0,110310.0,2.21389387]
[1756802224388,0.004,110320.0,110310.0,2.21389387]
[1756802224593,0.004,110320.0,110310.0,2.21489387]
[1756802224977,0.07090908,110350.0,110310.0,2.21489387]
[1756802225184,0.37,110350.0,110340.0,0.66888622]
[1756802225583,0.37,110350.0,110340.0,0.37535311]
[1756802226090,0.66353311,110350.0,110340.0,0.37535311]
[1756802226977,0.66553311,110350.0,110340.0,0.37535311]
[1756802227183,0.372,110350.0,110340.0,0.37535311]
[1756802227891,0.45611704,110350.0,110340.0,0.37535311]
[1756802228186,0.45611704,110350.0,110340.0,0.37988311]
[1756802228585,0.45811704,110350.0,110340.0,0.37988311]
[1756802231888,0.47783535,110350.0,110340.0,0.37988311]
[1756802232588,0.47783535,110350.0,110340.0,0.67341622]
[1756802232890,0.47683535,110350.0,110340.0,0.67341622]
[1756802234494,0.47783535,110350.0,110340.0,0.67341622]
[1756802236691,0.47383535,110350.0,110340.0,0.67341622]
[1756802236887,0.47583535,110350.0,110340.0,0.67341622]
[1756802237395,0.47283535,110350.0,110340.0,0.67341622]
[1756802237597,0.47483535,110350.0,110340.0,0.37925866]
[1756802238299,0.47583535,110350.0,110340.0,0.37925866]
[1756802238488,0.47783535,110350.0,110340.0,0.37925866]
[1756802239004,0.47283535,110350.0,110340.0,0.37925866]
[1756802239193,0.47483535,110350.0,110340.0,0.37925866]
[1756802240096,0.47283535,110350.0,110340.0,0.37925866]
[1756802240287,0.47492689,110350.0,110340.0,0.37925866]
[1756802241397,1.01783555,110350.0,110340.0,0.0507]
[1756802241695,1.06666617,110350.0,110340.0,0.02731]
[1756802241900,1.01783555,110350.0,110340.0,0.08681]
[1756802242503,1.01783555,110350.0,110340.0,0.05074]
[1756802243802,1.01783555,110350.0,110340.0,0.02731]
[1756802244202,1.01783555,110350.0,110340.0,0.00453]
[1756802245303,1.01783555,110350.0,110340.0,0.02731]
[1756802246001,1.01783555,110350.0,110340.0,0.00453]
[1756802249016,1.01783555,110350.0,110320.0,0.03607]
[1756802249305,1.12286866,110340.0,110320.0,0.08228]
[1756802249503,1.51267851,110340.0,110320.0,0.08228]
[1756802250503,1.51267851,110340.0,110320.0,0.08681]
[1756802251603,1.53260223,110340.0,110320.0,0.05074]
[1756802251800,1.53260223,110340.0,110320.0,0.08681]
[1756802252407,1.53360223,110340.0,110320.0,0.08681]
[1756802252798,1.53460223,110340.0,110320.0,0.08681]
[1756802254507,1.53408223,110340.0,110330.0,0.08228]
[1756802254701,1.53408223,110340.0,110330.0,0.04621]
[1756802255609,1.53508223,110340.0,110330.0,0.04621]
[1756802255904,1.53508223,110340.0,110330.0,0.02278]
[1756802256109,1.53608223,110340.0,110330.0,0.02278]
[1756802258701,0.41373357,110340.0,110330.0,0.02278]
[1756802258901,1.53608223,110340.0,110330.0,0.04677]
[1756802259114,1.53608223,110340.0,110320.0,0.09]
[1756802260116,1.53508223,110340.0,110320.0,0.09]
[1756802261315,0.41073357,110340.0,110330.0,0.03732]
[1756802261521,1.53408223,110340.0,110320.0,0.38290866]
[1756802262415,1.53408223,110340.0,110320.0,0.43115371]
[1756802262721,1.53612223,110340.0,110330.0,0.08547]
[1756802263022,0.70664223,110340.0,110330.0,0.08547]
[1756802263318,1.24017357,110340.0,110330.0,0.08547]
[1756802263520,1.24141357,110340.0,110330.0,0.08547]
[1756802263721,1.24141357,110340.0,110330.0,0.37837866]
[1756802263923,1.24141357,110340.0,110330.0,0.38290866]
[1756802264213,1.24241357,110340.0,110330.0,0.09]
[1756802264422,1.24245357,110340.0,110330.0,0.09]
[1756802265025,1.24345357,110340.0,110330.0,0.09]
[1756802265317,0.41373357,110340.0,110330.0,0.63290866]
[1756802265619,0.39392372,110340.0,110330.0,0.68115371]
[1756802271323,0.39392372,110340.0,110330.0,0.63290866]
[1756802271925,0.39392372,110340.0,110330.0,0.6816573]
[1756802272426,0.39392372,110340.0,110330.0,0.63290866]
[1756802273426,0.39392372,110340.0,110330.0,0.68165442]
[1756802274025,0.39392372,110340.0,110330.0,0.63290866]
[1756802274425,0.39392372,110340.0,110330.0,0.68165032]
[1756802274628,0.39392372,110340.0,110330.0,0.63290866]
[1756802274925,0.39392372,110340.0,110330.0,0.68165823]
[1756802276632,0.39392372,110340.0,110330.0,0.43165823]
[1756802277732,0.39292372,110340.0,110330.0,0.43165823]
[1756802278534,0.39392372,110340.0,110330.0,0.43165823]
[1756802281534,0.39392372,110340.0,110330.0,0.13874957]
[1756802281723,0.39392372,110340.0,110330.0,0.43165823]
[1756802282029,0.41378987,110340.0,110330.0,0.38290866]
[1756802288135,0.41378987,110340.0,110330.0,0.09]
[1756802291338,0.41378987,110340.0,110330.0,0.05268]
[1756802291839,1.78601853,110340.0,110330.0,0.00453]
[1756802292037,1.49310987,110340.0,110330.0,0.00453]
[1756802292339,1.78601853,110340.0,110330.0,0.00453]
[1756802293038,1.78601853,110340.0,110330.0,0.0276]
[1756802293432,1.78601853,110340.0,110330.0,0.00453]
[1756802294437,1.78602677,110340.0,110330.0,0.00453]
[1756802299441,2.07922773,110340.0,110330.0,0.00453]
[1756802301136,2.07922773,110340.0,110330.0,0.0276]
[1756802303144,1.24990773,110340.0,110330.0,0.0276]
[1756802303446,2.07922773,110340.0,110330.0,0.0276]
[1756802303945,2.07922773,110340.0,110330.0,0.00453]
[1756802304141,1.49311811,110340.0,110330.0,0.00453]
[1756802304345,2.07922773,110340.0,110330.0,0.00453]
[1756802317154,1.49311811,110340.0,110330.0,0.0276]
[1756802317352,1.49299811,110340.0,110330.0,0.38129481]
[1756802317549,1.24299811,110340.0,110330.0,0.38129481]
[1756802317852,1.22312372,110340.0,110330.0,0.72309919]
[1756802318043,0.39392372,110340.0,110330.0,0.97309919]
[1756802319655,0.39392372,110340.0,110330.0,0.92434962]
[1756802319844,0.39392372,110340.0,110330.0,0.9730517]
[1756802320045,0.39392372,110340.0,110330.0,0.92434962]
[1756802320547,0.39192372,110340.0,110330.0,0.92434962]
[1756802321656,0.372,110340.0,110330.0,0.92434962]
[1756802322044,0.39183575,110340.0,110330.0,0.92434962]
[1756802322248,0.372,110340.0,110330.0,0.97304839]
[1756802323647,0.001,110340.0,110330.0,0.97304839]
[1756802323954,0.09,110340.0,110330.0,0.97304839]
[1756802324655,0.07214865,110350.0,110330.0,0.93721839]
[1756802324861,0.37981223,110350.0,110340.0,0.67143962]
[1756802325050,0.45156226,110350.0,110340.0,0.67143962]
[1756802326156,0.45156226,110350.0,110340.0,0.67596962]
[1756802327459,0.45256226,110350.0,110340.0,0.67596962]
[1756802327760,0.45356226,110350.0,110340.0,0.67596962]
[1756802328559,0.43375003,110350.0,110340.0,0.67596962]
[1756802332355,0.43375003,110350.0,110340.0,0.72466839]
[1756802342980,0.43375003,110350.0,110340.0,1.55334839]
[1756802346279,0.43375003,110350.0,110340.0,0.72466839]
[1756802346577,0.43375003,110350.0,110340.0,1.55334839]
[1756802347382,0.43375003,110350.0,110340.0,1.50464962]
[1756802348287,0.43375003,110350.0,110340.0,1.56982365]
[1756802349186,0.43375003,110350.0,110340.0,1.50464962]
[1756802352884,0.362,110350.0,110340.0,2.13832373]
[1756802353186,0.362,110350.0,110340.0,2.20349776]
[1756802353496,0.002,110350.0,110340.0,2.46919776]
[1756802353791,0.002,110350.0,110340.0,2.40402373]
[1756802356694,0.002,110350.0,110340.0,2.48544134]
[1756802357786,0.002,110350.0,110340.0,2.40402373]
[1756802358796,0.002,110350.0,110340.0,2.13832373]
[1756802359097,0.002,110350.0,110340.0,1.21902443]
[1756802359286,0.002,110350.0,110340.0,2.04746443]
[1756802359487,0.002,110350.0,110340.0,1.75388728]
[1756802360091,0.002,110350.0,110340.0,0.92544728]
[1756802360288,0.002,110350.0,110340.0,1.50384728]
[1756802360490,0.90479364,110350.0,110340.0,0.08986]
[1756802360687,0.612,110350.0,110340.0,0.91826]
[1756802360996,0.612,110350.0,110340.0,0.08986]
[1756802361196,0.612,110350.0,110340.0,0.96689934]
[1756802364199,0.612,110350.0,110340.0,0.13853934]
[1756802364402,0.582,110350.0,110340.0,0.13853934]
[1756802364598,0.89462814,110350.0,110340.0,0.00453]
[1756802364799,0.89462814,110350.0,110340.0,0.05164]
[1756802365098,0.89462814,110350.0,110340.0,0.08722]
[1756802365699,0.6018345,110350.0,110340.0,0.08722]
[1756802373309,0.3518345,110350.0,110340.0,0.38001364]
[1756802380810,0.3518345,110350.0,110340.0,0.39854812]
[1756802381009,0.0218345,110350.0,110340.0,0.94134176]
[1756802381206,0.002,110350.0,110340.0,0.94134176]
[1756802381907,0.002,110350.0,110340.0,0.9900211]
[1756802382309,0.002,110350.0,110340.0,0.69722746]
[1756802382517,0.002,110350.0,110340.0,0.64854812]
[1756802383209,0.002,110350.0,110340.0,0.69722746]
[1756802387116,0.002,110350.0,110340.0,0.9900211]
[1756802387312,0.01995786,110390.0,110350.0,0.139325]
[1756802387520,0.35977338,110390.0,110380.0,0.08276]
[1756802387715,0.65256702,110390.0,110360.0,0.04864865]
[1756802387920,0.65256702,110390.0,110370.0,0.42420229]
[1756802388220,0.65256702,110390.0,110380.0,0.08276]
[1756802388720,0.66881883,110390.0,110380.0,0.08728]
[1756802389215,0.37502519,110390.0,110380.0,0.08728]
[1756802389614,0.37802519,110390.0,110380.0,0.08728]
[1756802389815,0.67181883,110390.0,110380.0,0.08728]
[1756802390120,1.49989883,110390.0,110380.0,0.08728]
[1756802390320,1.20710519,110390.0,110380.0,0.08728]
[1756802391518,0.35920967,110390.0,110380.0,0.08728]
[1756802391725,0.35920967,110390.0,110380.0,0.38007364]
[1756802393627,0.33925181,110390.0,110380.0,0.38007364]
[1756802395620,0.33,110390.0,110380.0,0.38007364]
[1756802395820,0.33,110390.0,110380.0,0.39849218]
[1756802396021,0.33,110390.0,110380.0,0.64849218]
[1756802397327,0.13,110390.0,110380.0,0.64849218]
[1756802397526,0.13,110390.0,110380.0,0.69714083]
[1756802397527,0.01,110390.0,110380.0,0.69714083]
[1756802398425,0.009,110390.0,110380.0,0.69714083]
[1756802398822,0.008,110390.0,110380.0,0.69714083]
[1756802399331,0.008,110390.0,110380.0,1.27494083]
[1756802399658,0.008,110390.0,110380.0,1.22629218]
[1756802399926,0.008,110390.0,110380.0,1.27494083]
[1756802400329,0.008,110390.0,110380.0,1.27490083]
[1756802400533,0.008,110390.0,110380.0,1.22625218]
[1756802401033,0.368,110390.0,110380.0,0.10569854]
[1756802401330,0.008,110390.0,110380.0,1.22625218]
[1756802401527,0.358,110390.0,110380.0,0.39849218]
[1756802401831,0.65079364,110390.0,110380.0,0.10569854]
[1756802402226,0.358,110390.0,110380.0,0.10569854]
[1756802403131,0.008,110390.0,110380.0,0.39849218]
[1756802403923,0.368,110390.0,110380.0,0.39849218]
[1756802404123,0.008,110390.0,110380.0,0.39849218]
[1756802411747,0.328,110390.0,110380.0,0.39849218]
[1756802412035,0.02772887,110390.0,110380.0,0.39849218]
[1756802412223,0.05772887,110390.0,110380.0,0.39849218]
[1756802413430,0.34772887,110390.0,110380.0,0.39849218]
[1756802414340,0.05772887,110390.0,110380.0,0.39849218]
[1756802417939,0.05778623,110390.0,110380.0,0.39849218]
[1756802420846,0.05178623,110390.0,110380.0,0.39849218]
[1756802421047,0.05478623,110390.0,110380.0,0.39849218]
[1756802421452,0.05478623,110390.0,110380.0,0.69110806]
[1756802422233,0.05478623,110390.0,110380.0,0.10569854]
[1756802422234,0.63749099,110390.0,110380.0,0.10569854]
[1756802422439,0.63749099,110390.0,110380.0,0.37998476]
[1756802423440,0.34478623,110390.0,110380.0,0.67268952]
[1756802423641,0.10478623,110390.0,110380.0,0.67268952]
[1756802424852,0.085,110390.0,110380.0,1.26404293]
[1756802425849,0.005,110390.0,110380.0,1.26404293]
[1756802427455,0.005,110390.0,110380.0,1.79869817]
[1756802429053,0.005,110390.0,110380.0,0.97133817]
[1756802429556,0.005,110390.0,110380.0,1.79865817]
[1756802434055,0.005,110390.0,110380.0,2.09136293]
[1756802434649,0.005,110390.0,110380.0,1.26404293]
[1756802434850,0.005,110390.0,110380.0,2.09132293]
[1756802435751,0.005,110390.0,110380.0,2.04267428]
[1756802442256,0.005,110390.0,110380.0,1.79267428]
[1756802448254,0.005,110390.0,110380.0,1.85756217]
[1756802448564,0.005,110390.0,110380.0,2.12326217]
[1756802449061,0.005,110390.0,110380.0,2.21384887]
[1756802450056,0.005,110390.0,110380.0,2.12326217]
[1756802451664,0.005,110390.0,110380.0,2.21384897]
[1756802452556,0.005,110390.0,110380.0,2.46384897]
[1756802452760,0.02015402,110410.0,110400.0,0.09568]
[1756802452961,0.36015402,110410.0,110400.0,1.55677751]
[1756802453361,0.02015402,110410.0,110400.0,1.55677751]
[1756802454069,0.005,110410.0,110400.0,1.55677751]
[1756802454363,0.005,110410.0,110400.0,1.56129751]
[1756802455165,0.005,110410.0,110400.0,1.51260952]
[1756802455771,0.005,110410.0,110400.0,1.85399308]
[1756802456454,0.005,110410.0,110400.0,1.56128832]
[1756802456860,0.005,110410.0,110400.0,1.51260952]
[1756802457060,0.005,110410.0,110400.0,1.56128015]
[1756802457257,0.005,110410.0,110400.0,1.85398491]
[1756802457968,0.005,110410.0,110400.0,1.02698491]
[1756802458271,0.005,110410.0,110400.0,1.85386491]
[1756802458770,0.005,110410.0,110400.0,1.56116015]
[1756802460271,0.005,110410.0,110400.0,0.97575063]
[1756802460462,0.005,110410.0,110400.0,1.56116015]
[1756802461563,0.005,110410.0,110400.0,1.85386491]
[1756802461963,0.005,110410.0,110400.0,1.80519428]
[1756802462267,0.005,110410.0,110400.0,2.14576458]
[1756802462468,0.00716972,110440.0,110430.0,0.08119]
[1756802462773,0.35693607,110440.0,110430.0,1.13963952]
[1756802463269,0.60693607,110440.0,110430.0,1.13963952]
[1756802463675,0.60993607,110440.0,110430.0,1.49339952]
[1756802463875,0.61293607,110440.0,110430.0,1.49339952]
[1756802464776,0.61293607,110440.0,110430.0,1.5645578]
[1756802464963,0.61293607,110440.0,110430.0,0.7377978]
[1756802465169,0.61293607,110440.0,110430.0,1.5645578]
[1756802465976,0.61293607,110440.0,110430.0,1.5645178]
[1756802467776,0.36293607,110440.0,110430.0,1.5645178]
[1756802467963,0.36290397,110440.0,110430.0,2.10722256]
[1756802468167,0.34316972,110440.0,110430.0,2.10722256]
[1756802468372,0.01316972,110440.0,110430.0,2.19776826]
[1756802468973,0.00784836,110450.0,110430.0,2.20664995]
[1756802469171,0.00743324,110470.0,110460.0,0.0848]
[1756802469373,0.00743324,110470.0,110460.0,1.20410476]
[1756802469374,0.33743324,110470.0,110460.0,1.20410476]
[1756802470485,0.33843324,110470.0,110460.0,1.20410476]
[1756802470685,0.33843324,110470.0,110460.0,1.20510476]
[1756802471281,0.33843324,110470.0,110460.0,1.79051428]
[1756802471582,0.00843324,110470.0,110460.0,1.79051428]
[1756802471785,0.00843324,110470.0,110460.0,1.79043428]
[1756802472082,0.00746257,110500.0,110470.0,0.1753129]
[1756802472282,0.35154257,110500.0,110490.0,0.67020952]
[1756802472682,0.35154257,110500.0,110490.0,1.20402476]
[1756802472880,0.35154257,110500.0,110490.0,1.49672952]
[1756802473081,0.35154257,110500.0,110490.0,1.56735345]
[1756802473381,0.31746257,110500.0,110490.0,1.56735345]
[1756802473585,0.31746257,110500.0,110490.0,1.86005821]
[1756802473882,0.31746257,110500.0,110490.0,2.20055471]
[1756802473883,0.00746257,110500.0,110490.0,2.20055471]
[1756802474075,0.00746257,110500.0,110490.0,2.21865985]
[1756802474076,0.00846257,110500.0,110490.0,2.21865985]
[1756802474276,0.00660275,110520.0,110510.0,0.0848]
[1756802474483,0.37660275,110520.0,110510.0,0.67020952]
[1756802474682,0.37660275,110520.0,110510.0,1.49664952]
[1756802475087,0.37660275,110520.0,110510.0,1.49660952]
[1756802475396,0.00660275,110520.0,110510.0,1.49660952]
[1756802475881,0.00660275,110520.0,110510.0,0.96291428]
[1756802476077,0.00660275,110520.0,110510.0,1.49656952]
[1756802476283,0.00660275,110520.0,110510.0,1.74656952]
[1756802476496,0.00660275,110520.0,110510.0,1.16116]
[1756802476688,0.00660275,110520.0,110510.0,2.03927428]
[1756802477289,0.00679779,110530.0,110510.0,1.26590438]
[1756802477595,0.00679779,110530.0,110520.0,1.78915428]
[1756802477596,0.08679779,110530.0,110520.0,1.78915428]
[1756802477891,0.00679779,110530.0,110520.0,1.78915428]
[1756802478088,0.00679779,110530.0,110520.0,2.03915428]
[1756802478483,0.00679779,110530.0,110520.0,2.03911428]
[1756802479088,0.00679779,110530.0,110520.0,2.04011428]
[1756802479888,0.02765118,110550.0,110530.0,0.03749]
[1756802480100,0.02765118,110550.0,110540.0,1.78903428]
[1756802481187,0.02765118,110550.0,110540.0,0.96291428]
[1756802481396,0.02765118,110550.0,110540.0,1.78895428]
[1756802481898,0.02765118,110550.0,110540.0,1.79195428]
[1756802482086,0.00766673,110550.0,110540.0,1.79195428]
[1756802482291,0.00668055,110560.0,110550.0,0.0985]
[1756802482597,0.00668055,110560.0,110550.0,0.68390952]
[1756802482892,0.00668055,110560.0,110550.0,0.97661428]
[1756802483487,0.00668055,110560.0,110550.0,0.68183422]
[1756802483695,0.00668055,110560.0,110550.0,0.68283422]
[1756802483898,0.00668055,110560.0,110550.0,1.50875422]
[1756802484200,0.00668055,110560.0,110550.0,1.58329331]
[1756802484398,0.00668055,110560.0,110550.0,0.4657062]
[1756802484601,0.61076055,110560.0,110550.0,0.99995909]
[1756802484784,0.61076055,110560.0,110550.0,1.2916262]
[1756802484989,0.29076055,110560.0,110550.0,1.2916262]
[1756802485386,0.29076055,110560.0,110550.0,1.36224929]
[1756802485700,0.29076055,110560.0,110550.0,1.36216929]
[1756802486402,0.29076055,110560.0,110550.0,0.53632929]
[1756802486589,0.29076055,110560.0,110550.0,1.35728929]
[1756802487097,0.29076055,110560.0,110550.0,1.36208929]
[1756802487487,0.29076055,110560.0,110550.0,0.53632929]
[1756802487793,0.29076055,110560.0,110550.0,0.94380909]
[1756802487993,0.29076055,110560.0,110550.0,0.02709]
[1756802488198,0.04668055,110560.0,110550.0,0.4637902]
[1756802490300,0.05966055,110560.0,110550.0,0.4637902]
[1756802490499,0.08076055,110560.0,110550.0,0.4637902]
[1756802490794,0.08076055,110560.0,110550.0,0.48176618]
[1756802492100,0.08076055,110560.0,110550.0,0.55471048]
[1756802492600,0.35076055,110560.0,110550.0,0.19694028]
[1756802492796,0.32076055,110560.0,110550.0,0.19694028]
[1756802493296,0.67076055,110560.0,110550.0,0.19694028]
[1756802493491,0.64076055,110560.0,110550.0,0.18324028]
[1756802494001,0.45076055,110560.0,110550.0,0.18324028]
[1756802494302,0.45076055,110560.0,110550.0,0.19694028]
[1756802494496,0.45076055,110560.0,110550.0,0.55923048]
[1756802495797,0.45076055,110560.0,110550.0,0.19694028]
[1756802496301,0.45076055,110560.0,110550.0,0.55923048]
[1756802496499,0.29076055,110560.0,110550.0,0.19694028]
[1756802496692,0.65076055,110560.0,110550.0,0.00752]
[1756802497202,0.65076055,110560.0,110550.0,0.03068]
[1756802497701,0.65076055,110560.0,110550.0,0.00752]
[1756802498203,0.65076055,110560.0,110550.0,0.05355]
[1756802498504,0.65076055,110560.0,110550.0,0.05255]
[1756802498702,0.65076055,110560.0,110550.0,0.05155]
[1756802499307,0.65076055,110560.0,110550.0,0.08822]
[1756802500702,1.47628055,110560.0,110550.0,0.00552]
[1756802501004,1.85824978,110560.0,110550.0,0.00552]
[1756802501403,0.0083,110540.0,110530.0,0.041565]
[1756802501605,0.3209,110540.0,110530.0,0.041565]
[1756802501804,0.3909,110540.0,110530.0,0.064435]
[1756802502008,0.37060214,110540.0,110530.0,0.101105]
[1756802502212,0.03060214,110540.0,110530.0,0.101105]
[1756802502913,0.07060214,110540.0,110530.0,0.101105]
[1756802503212,0.39060214,110540.0,110530.0,0.0827]
[1756802503908,0.03060214,110540.0,110530.0,0.0827]
[1756802504116,0.36060214,110540.0,110530.0,0.0827]
[1756802504714,0.36060214,110540.0,110530.0,0.04603]
[1756802505603,0.08971068,110540.0,110530.0,0.0827]
[1756802508810,0.40971068,110540.0,110530.0,0.0827]
[1756802509217,0.20971068,110540.0,110530.0,0.0827]
[1756802510117,0.18971068,110540.0,110530.0,0.0827]
[1756802511507,0.39706095,110540.0,110520.0,0.05463966]
[1756802511712,0.39706095,110540.0,110530.0,0.0827]
[1756802512210,0.39966095,110540.0,110530.0,0.0827]
[1756802512508,0.39966095,110540.0,110530.0,0.04603]
[1756802512816,0.39966095,110540.0,110530.0,0.0827]
[1756802513916,0.39966095,110540.0,110530.0,0.0837]
[1756802514717,0.39966095,110540.0,110530.0,0.0827]
[1756802519714,0.39966095,110540.0,110520.0,0.05463966]
[1756802519912,0.0109,110530.0,110520.0,0.0827]
[1756802520112,0.3709,110530.0,110520.0,0.0827]
[1756802520416,1.56025652,110530.0,110510.0,0.04119]
[1756802520620,0.0109,110520.0,110510.0,0.08722]
[1756802520918,0.3909,110520.0,110510.0,0.08722]
[1756802521421,0.0109,110520.0,110510.0,0.08722]
[1756802521626,0.8505,110530.0,110520.0,0.04803]
[1756802521806,0.16975001,110530.0,110520.0,0.4103202]
[1756802522012,0.15,110530.0,110520.0,0.4103202]
[1756802522314,0.15,110530.0,110520.0,0.4449902]
[1756802523005,0.15,110530.0,110520.0,0.4469902]
[1756802523821,0.15415,110530.0,110520.0,0.4469902]
[1756802524014,0.1609,110530.0,110520.0,0.4469902]
[1756802524513,0.15415,110530.0,110520.0,0.4489902]
[1756802525015,0.1609,110530.0,110520.0,0.4459902]
[1756802525213,0.1609,110530.0,110520.0,0.49666083]
[1756802526422,0.1583,110530.0,110520.0,0.49666083]
[1756802527514,0.1609,110530.0,110520.0,0.49666083]
[1756802529724,0.1609,110530.0,110520.0,0.13437063]
[1756802529906,0.15,110530.0,110520.0,0.51512405]
[1756802530106,0.15,110530.0,110520.0,0.46645342]
[1756802531214,0.15,110530.0,110520.0,0.53137074]
[1756802531515,0.15,110530.0,110520.0,0.46645342]
[1756802531709,0.15,110530.0,110520.0,1.55605342]
[1756802531910,0.01995027,110540.0,110520.0,1.60080103]
[1756802532110,0.31995027,110540.0,110530.0,0.50802592]
[1756802532525,0.3,110540.0,110530.0,0.50802592]
[1756802532816,0.12,110540.0,110530.0,0.50802592]
[1756802533724,0.12,110540.0,110530.0,0.75802592]
[1756802534227,0.02907391,110560.0,110550.0,0.09576]
[1756802534228,0.02647391,110560.0,110550.0,0.09576]
[1756802534417,0.37647391,110560.0,110550.0,0.50660651]
[1756802534717,0.02647391,110560.0,110550.0,0.50660651]
[1756802534924,0.18668055,110560.0,110550.0,0.52499819]
[1756802535520,0.18668055,110560.0,110550.0,0.77499819]
[1756802536222,0.18668055,110560.0,110550.0,1.61423819]
[1756802536414,0.18668055,110560.0,110550.0,1.61723819]
[1756802536825,0.18668055,110560.0,110550.0,1.61815819]
[1756802538629,0.18668055,110560.0,110550.0,1.62714136]
[1756802538921,0.18668055,110560.0,110550.0,1.61815819]
[1756802539823,0.18668055,110560.0,110550.0,0.77899819]
[1756802540024,0.18668055,110560.0,110550.0,1.69092073]
[1756802540624,0.18668055,110560.0,110550.0,0.85192073]
[1756802540826,0.18668055,110560.0,110550.0,1.69068073]
[1756802541724,0.18668055,110560.0,110550.0,0.85192073]
[1756802541928,0.19343055,110560.0,110550.0,1.69032073]
[1756802542116,0.19083055,110560.0,110550.0,1.64176442]
[1756802542315,0.18668055,110560.0,110550.0,1.64176442]
[1756802542515,0.19083055,110560.0,110550.0,1.27947422]
[1756802542828,0.00668055,110560.0,110550.0,1.64176442]
[1756802543525,0.00668055,110560.0,110550.0,2.00862608]
[1756802543917,0.00668055,110560.0,110550.0,2.05718239]
[1756802546427,0.00757059,110580.0,110570.0,0.44547593]
[1756802546628,0.00757059,110580.0,110570.0,1.28303593]
[1756802549119,0.01847059,110580.0,110570.0,0.44547593]
[1756802549318,0.01847059,110580.0,110570.0,1.28255593]
[1756802550631,0.26847059,110580.0,110570.0,0.91782]
[1756802550820,0.26847059,110580.0,110570.0,1.28239593]
[1756802551513,0.26847059,110580.0,110570.0,1.20950354]
[1756802552130,0.28815065,110580.0,110570.0,1.20950354]
[1756802552526,0.28815065,110580.0,110570.0,0.37258354]
[1756802552726,0.28815065,110580.0,110570.0,1.20914354]
[1756802554628,0.28815065,110580.0,110570.0,0.37258354]
[1756802555628,0.63815065,110580.0,110570.0,0.37258354]
[1756802555821,0.28815065,110580.0,110570.0,0.37258354]
[1756802556332,0.11725065,110580.0,110570.0,1.20595062]
[1756802556727,0.11725065,110580.0,110570.0,0.91426708]
[1756802557433,0.02725065,110580.0,110570.0,0.91878708]
[1756802559128,0.00757059,110580.0,110570.0,0.91878708]
[1756802559729,0.02728055,110580.0,110570.0,0.91878708]
[1756802561436,0.02728055,110580.0,110570.0,0.08542]
[1756802561733,0.02728055,110580.0,110570.0,1.50402708]
[1756802562136,0.00757059,110580.0,110570.0,1.50402708]
[1756802562332,0.00757059,110580.0,110570.0,1.21234354]
[1756802562637,0.01017059,110580.0,110570.0,1.21234354]
[1756802563637,0.00757059,110580.0,110570.0,1.21234354]
[1756802565534,0.00757059,110580.0,110570.0,1.50402708]
[1756802571239,0.00757059,110580.0,110570.0,1.55258339]
[1756802571739,0.02732847,110580.0,110570.0,1.50402708]
[1756802572137,0.02732847,110580.0,110570.0,1.55258339]
[1756802575837,0.02732847,110580.0,110570.0,0.42565985]
[1756802576139,1.23160702,110580.0,110570.0,0.08542]
[1756802576334,1.23160702,110580.0,110570.0,0.02841]
[1756802576644,1.23160702,110580.0,110570.0,0.02921]
[1756802576832,1.23160702,110580.0,110570.0,0.00452]
[1756802578442,0.0026,110570.0,110560.0,0.10339742]
[1756802578639,0.68258354,110570.0,110560.0,0.10339742]
[1756802578945,0.70235289,110570.0,110560.0,0.10339742]
[1756802579741,0.70235289,110570.0,110560.0,0.10891742]
[1756802579939,0.70235289,110570.0,110560.0,0.11091742]
[1756802580842,1.53651289,110570.0,110560.0,0.09277742]
[1756802582041,2.09816228,110570.0,110560.0,0.00652]
[1756802582439,2.09816228,110570.0,110560.0,1.21639062]
[1756802582440,0.06976935,110570.0,110560.0,1.21639062]
[1756802582644,0.05,110570.0,110560.0,1.26294693]
[1756802582942,0.00757059,110580.0,110570.0,0.03602]
[1756802583137,0.11,110580.0,110570.0,1.46608708]
[1756802583345,0.11,110580.0,110570.0,1.80066339]
[1756802583543,0.02773134,110590.0,110580.0,0.08482]
[1756802583842,0.34773134,110590.0,110580.0,0.66818708]
[1756802584441,0.37062134,110590.0,110580.0,0.66818708]
[1756802584638,0.00796011,110590.0,110580.0,0.66818708]
[1756802584840,0.00796011,110590.0,110580.0,0.91818708]
[1756802585036,0.00796011,110590.0,110580.0,1.25842693]
[1756802585241,0.00796011,110590.0,110580.0,1.20987062]
[1756802585440,0.00796011,110590.0,110580.0,0.69921029]
[1756802586653,0.00896011,110590.0,110580.0,0.76404601]
[1756802586847,0.00896011,110590.0,110580.0,0.69921029]
[1756802587038,0.00896011,110590.0,110580.0,0.70521029]
[1756802587238,0.00796011,110590.0,110580.0,0.70521029]
[1756802587438,0.00796011,110590.0,110580.0,0.70821029]
[1756802589542,0.00796011,110590.0,110580.0,0.71407436]
[1756802589754,0.00796011,110590.0,110580.0,0.71707436]
[1756802592352,0.00796011,110590.0,110580.0,0.71607436]
[1756802592647,0.00796011,110590.0,110580.0,0.71407436]